[Event "Titled Tuesday Blitz June 27 Late 2023"]
[White "Martinez Ramirez, Lennis"]
[Black "Gasparyan, David"]
[WhiteFideId "3509079"]
[BlackFideId "13311980"]
[WhiteElo "2616"]
[BlackElo "2434"]
[Result "1-0"]
[Round "3"]
[TimeControl "180+2"]
[Date "2023.06.27"]
[WhiteClock "0:00:55"]
[BlackClock "0:00:11"]
[Board "100"]

1. Nf3 {[%clk 0:03:00]}  Nf6 {[%clk 0:02:59]} 2. c4 {[%clk 0:03:00]}  d5 {[%clk 0:02:58]} 3. cxd5 {[%clk 0:02:59]}  Nxd5 {[%clk 0:02:58]} 4. e4 {[%clk 0:03:00]}  Nb6 {[%clk 0:02:56]} 5. d4 {[%clk 0:03:00]}  g6 {[%clk 0:02:56]} 6. h4 {[%clk 0:02:58]}  h5 {[%clk 0:02:48]} 7. Be2 {[%clk 0:02:38]}  Bg4 {[%clk 0:02:47]} 8. Nc3 {[%clk 0:02:32]}  Bg7 {[%clk 0:02:47]} 9. Ng5 {[%clk 0:02:28]}  Bxe2 {[%clk 0:02:37]} 10. Nxe2 {[%clk 0:02:29]}  c5 {[%clk 0:02:33]} 11. d5 {[%clk 0:02:27]}  N8d7 {[%clk 0:02:31]} 12. a4 {[%clk 0:02:24]}  Ne5 {[%clk 0:02:28]} 13. a5 {[%clk 0:02:23]}  Nbc4 {[%clk 0:02:28]} 14. f4 {[%clk 0:02:22]}  Nd7 {[%clk 0:02:24]} 15. Qa4 {[%clk 0:02:17]}  Nxb2 {[%clk 0:02:21]} 16. Bxb2 {[%clk 0:02:17]}  Bxb2 {[%clk 0:02:22]} 17. Rb1 {[%clk 0:02:16]}  Bg7 {[%clk 0:02:19]} 18. Rxb7 {[%clk 0:02:12]}  Qc8 {[%clk 0:02:11]} 19. a6 {[%clk 0:02:09]}  c4 {[%clk 0:02:04]} 20. e5 {[%clk 0:02:09]}  O-O {[%clk 0:01:49]} 21. Qxd7 {[%clk 0:01:49]}  Qc5 {[%clk 0:01:48]} 22. Qxe7 {[%clk 0:01:37]}  Qa5+ {[%clk 0:01:45]} 23. Kf2 {[%clk 0:01:36]}  Rae8 {[%clk 0:01:40]} 24. Qd6 {[%clk 0:01:30]}  Rd8 {[%clk 0:01:38]} 25. Qc6 {[%clk 0:01:30]}  Rxd5 {[%clk 0:01:34]} 26. Qxc4 {[%clk 0:01:26]}  Rc5 {[%clk 0:01:24]} 27. Ra1 {[%clk 0:01:21]}  Qxa1 {[%clk 0:01:09]} 28. Qxc5 {[%clk 0:01:19]}  Qxa6 {[%clk 0:01:09]} 29. Qxa7 {[%clk 0:01:19]}  Qc4 {[%clk 0:01:08]} 30. e6 {[%clk 0:01:00]}  Qc2 {[%clk 0:00:11]} 31. Rxf7 {[%clk 0:00:55]} 1-0


[Site "https://www.chess.com"]

[Event "Titled Tuesday Blitz June 27 Late 2023"]
[White "Andrej2004"]
[Black "Ladan, Nicholas"]
[BlackFideId "30918855"]
[WhiteElo "2612"]
[BlackElo "2428"]
[Result "1-0"]
[Round "3"]
[TimeControl "180+2"]
[Date "2023.06.27"]
[WhiteClock "0:01:35"]
[BlackClock "0:00:00"]
[Board "102"]

1. Nf3 {[%clk 0:03:00]}  d5 {[%clk 0:02:59]} 2. g3 {[%clk 0:03:00]}  Bg4 {[%clk 0:02:59]} 3. Bg2 {[%clk 0:03:00]}  e6 {[%clk 0:02:59]} 4. b3 {[%clk 0:03:00]}  Nd7 {[%clk 0:02:53]} 5. Bb2 {[%clk 0:03:01]}  a5 {[%clk 0:02:53]} 6. a3 {[%clk 0:03:00]}  Ngf6 {[%clk 0:02:52]} 7. h3 {[%clk 0:02:59]}  Bh5 {[%clk 0:02:51]} 8. O-O {[%clk 0:02:59]}  a4 {[%clk 0:02:51]} 9. b4 {[%clk 0:02:58]}  c5 {[%clk 0:02:52]} 10. bxc5 {[%clk 0:02:58]}  Bxc5 {[%clk 0:02:51]} 11. d3 {[%clk 0:02:58]}  O-O {[%clk 0:02:50]} 12. Nbd2 {[%clk 0:02:58]}  Rc8 {[%clk 0:02:42]} 13. g4 {[%clk 0:02:51]}  Bg6 {[%clk 0:02:42]} 14. c4 {[%clk 0:02:50]}  dxc4 {[%clk 0:02:25]} 15. Nxc4 {[%clk 0:02:51]}  b5 {[%clk 0:02:17]} 16. Nce5 {[%clk 0:02:50]}  Nd5 {[%clk 0:02:10]} 17. Qd2 {[%clk 0:02:48]}  Nxe5 {[%clk 0:01:54]} 18. Nxe5 {[%clk 0:02:49]}  b4 {[%clk 0:01:53]} 19. axb4 {[%clk 0:02:37]}  Bxb4 {[%clk 0:01:53]} 20. Qd1 {[%clk 0:02:36]}  Bc3 {[%clk 0:01:44]} 21. Bxc3 {[%clk 0:02:12]}  Nxc3 {[%clk 0:01:43]} 22. Qd2 {[%clk 0:02:12]}  Qd4 {[%clk 0:01:43]} 23. Nc6 {[%clk 0:02:09]}  Rxc6 {[%clk 0:01:01]} 24. Bxc6 {[%clk 0:02:10]}  h5 {[%clk 0:01:01]} 25. Rfc1 {[%clk 0:02:01]}  Nd5 {[%clk 0:00:42]} 26. Rxa4 {[%clk 0:02:00]}  Qf6 {[%clk 0:00:39]} 27. Bxd5 {[%clk 0:01:57]}  exd5 {[%clk 0:00:39]} 28. Qf4 {[%clk 0:01:55]}  Qe7 {[%clk 0:00:32]} 29. Qf3 {[%clk 0:01:54]}  hxg4 {[%clk 0:00:31]} 30. hxg4 {[%clk 0:01:55]}  f6 {[%clk 0:00:21]} 31. Rca1 {[%clk 0:01:51]}  Bf7 {[%clk 0:00:20]} 32. Ra8 {[%clk 0:01:48]}  Qe5 {[%clk 0:00:14]} 33. Rxf8+ {[%clk 0:01:47]}  Kxf8 {[%clk 0:00:15]} 34. Ra8+ {[%clk 0:01:47]}  Be8 {[%clk 0:00:16]} 35. Qe3 {[%clk 0:01:42]}  Qxe3 {[%clk 0:00:09]} 36. fxe3 {[%clk 0:01:43]}  Kf7 {[%clk 0:00:09]} 37. Kf2 {[%clk 0:01:43]}  Bd7 {[%clk 0:00:08]} 38. Ra7 {[%clk 0:01:43]}  Ke6 {[%clk 0:00:07]} 39. Kf3 {[%clk 0:01:44]}  g5 {[%clk 0:00:07]} 40. e4 {[%clk 0:01:44]}  dxe4+ {[%clk 0:00:05]} 41. Kxe4 {[%clk 0:01:45]}  Bc6+ {[%clk 0:00:05]} 42. Kd4 {[%clk 0:01:45]}  Bg2 {[%clk 0:00:06]} 43. Ke3 {[%clk 0:01:37]}  Bh3 {[%clk 0:00:05]} 44. Kf3 {[%clk 0:01:37]}  f5 {[%clk 0:00:06]} 45. Ra6+ {[%clk 0:01:35]}  Ke5 {[%clk 0:00:06]} 46. Ra5+ {[%clk 0:01:35]}  Kf6 {[%clk 0:00:06]} 47. Rxf5+ {[%clk 0:01:35]}  Kg6 {[%clk 0:00:05]} 48. Kg3 {[%clk 0:01:35]}  Bf1 {[%clk 0:00:00]} 49. Rxf1 {[%clk 0:01:35]} 1-0


[Site "https://www.chess.com"]

[Event "Titled Tuesday Blitz June 27 Late 2023"]
[White "lagarto93"]
[Black "Rangel, Daniel"]
[BlackFideId "2124475"]
[WhiteElo "2605"]
[BlackElo "2425"]
[Result "0-1"]
[Round "3"]
[TimeControl "180+2"]
[Date "2023.06.27"]
[WhiteClock "0:01:19"]
[BlackClock "0:00:41"]
[Board "103"]

1. d4 {[%clk 0:03:00]}  Nf6 {[%clk 0:02:59]} 2. c4 {[%clk 0:03:00]}  e6 {[%clk 0:03:00]} 3. Nc3 {[%clk 0:03:00]}  d5 {[%clk 0:03:01]} 4. cxd5 {[%clk 0:03:00]}  exd5 {[%clk 0:03:02]} 5. Bg5 {[%clk 0:03:00]}  c6 {[%clk 0:03:02]} 6. e3 {[%clk 0:03:00]}  Be7 {[%clk 0:03:02]} 7. Bd3 {[%clk 0:03:00]}  Nbd7 {[%clk 0:03:02]} 8. Nf3 {[%clk 0:02:58]}  Nh5 {[%clk 0:03:00]} 9. Bxe7 {[%clk 0:02:57]}  Qxe7 {[%clk 0:03:01]} 10. O-O {[%clk 0:02:57]}  Ndf6 {[%clk 0:02:59]} 11. Ne5 {[%clk 0:02:56]}  g6 {[%clk 0:02:50]} 12. Rb1 {[%clk 0:02:49]}  O-O {[%clk 0:02:50]} 13. b4 {[%clk 0:02:48]}  a6 {[%clk 0:02:39]} 14. a4 {[%clk 0:02:48]}  Ng7 {[%clk 0:02:39]} 15. b5 {[%clk 0:02:47]}  axb5 {[%clk 0:02:39]} 16. axb5 {[%clk 0:02:48]}  c5 {[%clk 0:02:38]} 17. Qf3 {[%clk 0:02:44]}  Qd6 {[%clk 0:02:23]} 18. b6 {[%clk 0:02:28]}  Bf5 {[%clk 0:02:16]} 19. Nb5 {[%clk 0:02:17]}  Qxb6 {[%clk 0:02:07]} 20. Bxf5 {[%clk 0:02:17]}  Nxf5 {[%clk 0:02:07]} 21. dxc5 {[%clk 0:02:14]}  Qxc5 {[%clk 0:01:58]} 22. g4 {[%clk 0:02:13]}  Qe7 {[%clk 0:01:50]} 23. Qf4 {[%clk 0:02:06]}  Nd6 {[%clk 0:01:36]} 24. Nxd6 {[%clk 0:02:03]}  Qxd6 {[%clk 0:01:37]} 25. Rxb7 {[%clk 0:02:02]}  Qe6 {[%clk 0:01:17]} 26. h3 {[%clk 0:01:56]}  Ne4 {[%clk 0:01:09]} 27. Rd1 {[%clk 0:01:43]}  Ra2 {[%clk 0:00:58]} 28. Nd3 {[%clk 0:01:43]}  Nc3 {[%clk 0:00:55]} 29. Nc1 {[%clk 0:01:28]}  Rc2 {[%clk 0:00:47]} 30. Rc7 {[%clk 0:01:19]}  Rxc1 {[%clk 0:00:41]} 0-1


[Site "https://www.chess.com"]

[Event "Titled Tuesday Blitz June 27 Late 2023"]
[White "Gulamali, Kazim"]
[Black "Sun, Rick"]
[WhiteFideId "2024764"]
[BlackFideId "30909481"]
[WhiteElo "2423"]
[BlackElo "2600"]
[Result "0-1"]
[Round "3"]
[TimeControl "180+2"]
[Date "2023.06.27"]
[WhiteClock "0:00:26"]
[BlackClock "0:00:07"]
[Board "104"]

1. e4 {[%clk 0:02:54]}  d6 {[%clk 0:03:00]} 2. d4 {[%clk 0:02:54]}  Nf6 {[%clk 0:03:01]} 3. Nc3 {[%clk 0:02:53]}  Nbd7 {[%clk 0:03:02]} 4. g4 {[%clk 0:02:53]}  e5 {[%clk 0:03:03]} 5. g5 {[%clk 0:02:53]}  Ng8 {[%clk 0:03:03]} 6. f4 {[%clk 0:02:51]}  h6 {[%clk 0:02:54]} 7. g6 {[%clk 0:02:40]}  Qh4+ {[%clk 0:02:45]} 8. Ke2 {[%clk 0:02:40]}  Qg4+ {[%clk 0:02:20]} 9. Nf3 {[%clk 0:02:40]}  Qxg6 {[%clk 0:02:20]} 10. Rg1 {[%clk 0:02:27]}  Qh7 {[%clk 0:02:12]} 11. f5 {[%clk 0:02:16]}  c6 {[%clk 0:02:00]} 12. Kf2 {[%clk 0:01:58]}  Ngf6 {[%clk 0:01:57]} 13. Bc4 {[%clk 0:01:55]}  b5 {[%clk 0:01:53]} 14. Bb3 {[%clk 0:01:54]}  b4 {[%clk 0:01:51]} 15. dxe5 {[%clk 0:01:53]}  dxe5 {[%clk 0:01:45]} 16. Qd3 {[%clk 0:01:53]}  bxc3 {[%clk 0:01:13]} 17. Qc4 {[%clk 0:01:52]}  Bc5+ {[%clk 0:01:13]} 18. Be3 {[%clk 0:01:50]}  Bxe3+ {[%clk 0:01:07]} 19. Kxe3 {[%clk 0:01:51]}  O-O {[%clk 0:00:56]} 20. bxc3 {[%clk 0:01:17]}  a5 {[%clk 0:00:54]} 21. a3 {[%clk 0:01:11]}  Ba6 {[%clk 0:00:43]} 22. Qxc6 {[%clk 0:01:09]}  Rfc8 {[%clk 0:00:34]} 23. Bxf7+ {[%clk 0:01:03]}  Kh8 {[%clk 0:00:20]} 24. Qa4 {[%clk 0:00:43]}  Rxc3+ {[%clk 0:00:18]} 25. Kd2 {[%clk 0:00:44]}  Rac8 {[%clk 0:00:17]} 26. Bb3 {[%clk 0:00:28]}  Nc5 {[%clk 0:00:13]} 27. Qxa5 {[%clk 0:00:29]}  Nxb3+ {[%clk 0:00:11]} 28. cxb3 {[%clk 0:00:29]}  Nxe4+ {[%clk 0:00:11]} 29. Kd1 {[%clk 0:00:28]}  Qxf5 {[%clk 0:00:09]} 30. Rf1 {[%clk 0:00:27]}  Bxf1 {[%clk 0:00:08]} 31. Ke1 {[%clk 0:00:26]}  Qxf3 {[%clk 0:00:07]} 32. Ra2 {[%clk 0:00:26]}  Rc1# {[%clk 0:00:07]} 0-1


[Site "https://www.chess.com"]

[Event "Titled Tuesday Blitz June 27 Late 2023"]
[White "MKlose11"]
[Black "Hoffmann, Asa"]
[BlackFideId "2001470"]
[WhiteElo "2598"]
[BlackElo "2422"]
[Result "1-0"]
[Round "3"]
[TimeControl "180+2"]
[Date "2023.06.27"]
[WhiteClock "0:01:28"]
[BlackClock "0:01:25"]
[Board "105"]

1. e4 {[%clk 0:03:00]}  d6 {[%clk 0:02:56]} 2. d4 {[%clk 0:02:58]}  Nf6 {[%clk 0:02:54]} 3. Nc3 {[%clk 0:02:57]}  c6 {[%clk 0:02:54]} 4. g3 {[%clk 0:02:47]}  Nbd7 {[%clk 0:02:50]} 5. Bg2 {[%clk 0:02:47]}  e5 {[%clk 0:02:50]} 6. Nge2 {[%clk 0:02:47]}  Be7 {[%clk 0:02:49]} 7. O-O {[%clk 0:02:47]}  b5 {[%clk 0:02:49]} 8. a3 {[%clk 0:02:46]}  a6 {[%clk 0:02:49]} 9. h3 {[%clk 0:02:47]}  Bb7 {[%clk 0:02:41]} 10. Be3 {[%clk 0:02:46]}  O-O {[%clk 0:02:35]} 11. g4 {[%clk 0:02:46]}  Ne8 {[%clk 0:02:31]} 12. Qd2 {[%clk 0:02:42]}  h6 {[%clk 0:02:28]} 13. Ng3 {[%clk 0:02:39]}  Bg5 {[%clk 0:02:24]} 14. Rad1 {[%clk 0:02:34]}  Bxe3 {[%clk 0:02:23]} 15. Qxe3 {[%clk 0:02:35]}  Qg5 {[%clk 0:02:20]} 16. f4 {[%clk 0:02:22]}  exd4 {[%clk 0:02:16]} 17. Qxd4 {[%clk 0:02:15]}  Qc5 {[%clk 0:02:15]} 18. Nf5 {[%clk 0:02:09]}  Ndf6 {[%clk 0:01:59]} 19. Nxd6 {[%clk 0:01:59]}  Qxd6 {[%clk 0:01:55]} 20. Qxd6 {[%clk 0:01:58]}  Nxd6 {[%clk 0:01:55]} 21. Rxd6 {[%clk 0:01:59]}  Rfd8 {[%clk 0:01:54]} 22. Rfd1 {[%clk 0:01:59]}  Rxd6 {[%clk 0:01:52]} 23. Rxd6 {[%clk 0:02:00]}  Kf8 {[%clk 0:01:51]} 24. e5 {[%clk 0:02:00]}  Ke7 {[%clk 0:01:46]} 25. Bxc6 {[%clk 0:01:43]}  Rb8 {[%clk 0:01:37]} 26. Bxb7 {[%clk 0:01:40]}  Rxb7 {[%clk 0:01:37]} 27. Rxa6 {[%clk 0:01:40]}  Ne8 {[%clk 0:01:34]} 28. Kf2 {[%clk 0:01:34]}  Nc7 {[%clk 0:01:33]} 29. Rc6 {[%clk 0:01:30]}  Kd7 {[%clk 0:01:31]} 30. Rc5 {[%clk 0:01:30]}  b4 {[%clk 0:01:31]} 31. axb4 {[%clk 0:01:28]}  Rxb4 {[%clk 0:01:31]} 32. Rxc7+ {[%clk 0:01:28]}  Kxc7 {[%clk 0:01:25]} 33. Nd5+ {[%clk 0:01:28]} 1-0


[Site "https://www.chess.com"]

[Event "Titled Tuesday Blitz June 27 Late 2023"]
[White "ATM622"]
[Black "Barski, Radoslaw"]
[BlackFideId "1131710"]
[WhiteElo "2591"]
[BlackElo "2422"]
[Result "1-0"]
[Round "3"]
[TimeControl "180+2"]
[Date "2023.06.27"]
[WhiteClock "0:01:03"]
[BlackClock "0:00:11"]
[Board "106"]

1. d4 {[%clk 0:03:00]}  Nf6 {[%clk 0:02:58]} 2. c4 {[%clk 0:03:00]}  g6 {[%clk 0:02:58]} 3. g3 {[%clk 0:03:00]}  Bg7 {[%clk 0:02:58]} 4. Bg2 {[%clk 0:02:59]}  O-O {[%clk 0:02:56]} 5. Nf3 {[%clk 0:02:58]}  d6 {[%clk 0:02:56]} 6. O-O {[%clk 0:02:58]}  Nc6 {[%clk 0:02:51]} 7. Nc3 {[%clk 0:02:57]}  a6 {[%clk 0:02:45]} 8. d5 {[%clk 0:02:56]}  Na5 {[%clk 0:02:44]} 9. Nd2 {[%clk 0:02:54]}  c5 {[%clk 0:02:43]} 10. Qc2 {[%clk 0:02:52]}  Bf5 {[%clk 0:02:40]} 11. e4 {[%clk 0:02:52]}  Bd7 {[%clk 0:02:41]} 12. Rb1 {[%clk 0:02:43]}  e5 {[%clk 0:02:33]} 13. h3 {[%clk 0:02:35]}  h5 {[%clk 0:02:28]} 14. f4 {[%clk 0:02:32]}  h4 {[%clk 0:02:14]} 15. fxe5 {[%clk 0:02:29]}  dxe5 {[%clk 0:02:14]} 16. g4 {[%clk 0:02:29]}  Nh7 {[%clk 0:02:12]} 17. Nf3 {[%clk 0:02:25]}  Nxc4 {[%clk 0:02:05]} 18. b3 {[%clk 0:02:17]}  Nd6 {[%clk 0:02:03]} 19. Qf2 {[%clk 0:02:15]}  f5 {[%clk 0:01:47]} 20. gxf5 {[%clk 0:02:10]}  gxf5 {[%clk 0:01:47]} 21. Qxh4 {[%clk 0:02:07]}  fxe4 {[%clk 0:01:36]} 22. Ng5 {[%clk 0:02:01]}  Rxf1+ {[%clk 0:01:31]} 23. Bxf1 {[%clk 0:02:00]}  Bf5 {[%clk 0:01:22]} 24. Be3 {[%clk 0:01:52]}  Bg6 {[%clk 0:00:53]} 25. Qg4 {[%clk 0:01:50]}  Nf5 {[%clk 0:00:39]} 26. Ne6 {[%clk 0:01:47]}  Qf6 {[%clk 0:00:38]} 27. Nxe4 {[%clk 0:01:45]}  Qf7 {[%clk 0:00:33]} 28. Bxc5 {[%clk 0:01:38]}  Nd4 {[%clk 0:00:25]} 29. Nxd4 {[%clk 0:01:33]}  exd4 {[%clk 0:00:25]} 30. d6 {[%clk 0:01:31]}  b5 {[%clk 0:00:24]} 31. a4 {[%clk 0:01:25]}  Bf5 {[%clk 0:00:19]} 32. Qg2 {[%clk 0:01:24]}  Qg6 {[%clk 0:00:16]} 33. Bd3 {[%clk 0:01:21]}  Re8 {[%clk 0:00:15]} 34. axb5 {[%clk 0:01:18]}  axb5 {[%clk 0:00:15]} 35. Qxg6 {[%clk 0:01:15]}  Bxg6 {[%clk 0:00:15]} 36. Re1 {[%clk 0:01:08]}  Ng5 {[%clk 0:00:15]} 37. d7 {[%clk 0:01:06]}  Rd8 {[%clk 0:00:14]} 38. Nxg5 {[%clk 0:01:06]}  Bxd3 {[%clk 0:00:11]} 39. Re8+ {[%clk 0:01:03]} 1-0


[Site "https://www.chess.com"]

[Event "Titled Tuesday Blitz June 27 Late 2023"]
[White "Ai, Evan"]
[Black "Bitoon, Richard"]
[WhiteFideId "2094770"]
[BlackFideId "5201110"]
[WhiteElo "2418"]
[BlackElo "2590"]
[Result "1-0"]
[Round "3"]
[TimeControl "180+2"]
[Date "2023.06.27"]
[WhiteClock "0:00:21"]
[BlackClock "0:00:07"]
[Board "107"]

1. d4 {[%clk 0:03:00]}  Nf6 {[%clk 0:02:59]} 2. c4 {[%clk 0:03:00]}  g6 {[%clk 0:03:00]} 3. Nf3 {[%clk 0:02:59]}  Bg7 {[%clk 0:03:00]} 4. g3 {[%clk 0:02:58]}  O-O {[%clk 0:03:01]} 5. Bg2 {[%clk 0:02:58]}  d6 {[%clk 0:03:02]} 6. Nc3 {[%clk 0:02:58]}  Nc6 {[%clk 0:03:03]} 7. O-O {[%clk 0:02:57]}  Bg4 {[%clk 0:03:04]} 8. e4 {[%clk 0:02:57]}  e5 {[%clk 0:03:03]} 9. d5 {[%clk 0:02:56]}  Nd4 {[%clk 0:03:03]} 10. Qd3 {[%clk 0:02:52]}  Nd7 {[%clk 0:02:59]} 11. Nxd4 {[%clk 0:02:47]}  exd4 {[%clk 0:02:51]} 12. Ne2 {[%clk 0:02:40]}  Nc5 {[%clk 0:02:51]} 13. Qd2 {[%clk 0:02:38]}  Re8 {[%clk 0:02:37]} 14. f3 {[%clk 0:02:34]}  d3 {[%clk 0:02:28]} 15. Nf4 {[%clk 0:02:27]}  Bd7 {[%clk 0:02:17]} 16. Nxd3 {[%clk 0:02:27]}  Na4 {[%clk 0:02:10]} 17. Rb1 {[%clk 0:02:25]}  b5 {[%clk 0:02:08]} 18. b3 {[%clk 0:02:19]}  Nc3 {[%clk 0:02:07]} 19. Rb2 {[%clk 0:02:19]}  bxc4 {[%clk 0:02:03]} 20. bxc4 {[%clk 0:02:20]}  Rb8 {[%clk 0:01:51]} 21. Rc2 {[%clk 0:02:20]}  Na4 {[%clk 0:01:50]} 22. Ba3 {[%clk 0:02:18]}  c5 {[%clk 0:01:38]} 23. dxc6 {[%clk 0:02:07]}  Bxc6 {[%clk 0:01:38]} 24. Nb4 {[%clk 0:02:07]}  Ba8 {[%clk 0:01:32]} 25. Nd5 {[%clk 0:02:04]}  Rc8 {[%clk 0:01:24]} 26. Ne3 {[%clk 0:01:59]}  Nc5 {[%clk 0:01:21]} 27. Rd1 {[%clk 0:01:53]}  Bh6 {[%clk 0:01:18]} 28. Qf2 {[%clk 0:01:51]}  Qb6 {[%clk 0:01:17]} 29. Ng4 {[%clk 0:01:41]}  Bg7 {[%clk 0:01:16]} 30. Bb2 {[%clk 0:01:41]}  Na4 {[%clk 0:00:52]} 31. Bxg7 {[%clk 0:01:33]}  Kxg7 {[%clk 0:00:52]} 32. Qxb6 {[%clk 0:01:30]}  Nxb6 {[%clk 0:00:53]} 33. Rxd6 {[%clk 0:01:30]}  Nxc4 {[%clk 0:00:52]} 34. Rd7 {[%clk 0:01:25]}  h5 {[%clk 0:00:50]} 35. Nf2 {[%clk 0:01:20]}  Ne3 {[%clk 0:00:49]} 36. Rxc8 {[%clk 0:01:17]}  Rxc8 {[%clk 0:00:50]} 37. Nd3 {[%clk 0:01:16]}  Rc2 {[%clk 0:00:48]} 38. Bh3 {[%clk 0:01:14]}  Rxa2 {[%clk 0:00:36]} 39. Be6 {[%clk 0:01:14]}  Ra1+ {[%clk 0:00:34]} 40. Kf2 {[%clk 0:01:14]}  Nd1+ {[%clk 0:00:35]} 41. Kg2 {[%clk 0:01:06]}  Ne3+ {[%clk 0:00:31]} 42. Kh3 {[%clk 0:01:06]}  Kf6 {[%clk 0:00:20]} 43. Bxf7 {[%clk 0:01:04]}  Bc6 {[%clk 0:00:18]} 44. e5+ {[%clk 0:00:57]}  Kf5 {[%clk 0:00:18]} 45. Rd6 {[%clk 0:00:52]}  Bxf3 {[%clk 0:00:16]} 46. Bxg6+ {[%clk 0:00:51]}  Kg5 {[%clk 0:00:15]} 47. g4 {[%clk 0:00:36]}  Rg1 {[%clk 0:00:11]} 48. Bxh5 {[%clk 0:00:31]}  Nxg4 {[%clk 0:00:07]} 49. Rg6+ {[%clk 0:00:21]}  Kxh5 {[%clk 0:00:07]} 50. Nf4# {[%clk 0:00:21]} 1-0


[Site "https://www.chess.com"]

[Event "Titled Tuesday Blitz June 27 Late 2023"]
[White "Przybylski, Wojciech"]
[Black "Pesotskiy, Mikhail"]
[WhiteFideId "1117599"]
[BlackFideId "34164453"]
[WhiteElo "2582"]
[BlackElo "2399"]
[Result "1-0"]
[Round "3"]
[TimeControl "180+2"]
[Date "2023.06.27"]
[WhiteClock "0:00:24"]
[BlackClock "0:00:00"]
[Board "110"]

1. d4 {[%clk 0:02:56]}  e6 {[%clk 0:03:00]} 2. e4 {[%clk 0:02:55]}  d5 {[%clk 0:03:00]} 3. Nc3 {[%clk 0:02:55]}  Bb4 {[%clk 0:03:00]} 4. a3 {[%clk 0:02:55]}  Bxc3+ {[%clk 0:03:00]} 5. bxc3 {[%clk 0:02:56]}  dxe4 {[%clk 0:03:01]} 6. Qg4 {[%clk 0:02:55]}  Nf6 {[%clk 0:03:02]} 7. Qxg7 {[%clk 0:02:55]}  Rg8 {[%clk 0:03:03]} 8. Qh6 {[%clk 0:02:56]}  Rg6 {[%clk 0:03:04]} 9. Qe3 {[%clk 0:02:55]}  Nbd7 {[%clk 0:03:02]} 10. c4 {[%clk 0:02:55]}  b6 {[%clk 0:02:59]} 11. Qc3 {[%clk 0:02:54]}  Bb7 {[%clk 0:02:59]} 12. Be3 {[%clk 0:02:54]}  Qe7 {[%clk 0:02:56]} 13. h3 {[%clk 0:02:54]}  O-O-O {[%clk 0:02:51]} 14. Ne2 {[%clk 0:02:53]}  e5 {[%clk 0:02:34]} 15. d5 {[%clk 0:02:49]}  c6 {[%clk 0:02:24]} 16. O-O-O {[%clk 0:02:45]}  Nc5 {[%clk 0:02:16]} 17. Ng3 {[%clk 0:02:36]}  cxd5 {[%clk 0:02:13]} 18. cxd5 {[%clk 0:02:13]}  Nxd5 {[%clk 0:02:14]} 19. Qe1 {[%clk 0:02:03]}  Nd3+ {[%clk 0:01:56]} 20. Rxd3 {[%clk 0:01:23]}  exd3 {[%clk 0:01:52]} 21. Kb2 {[%clk 0:01:19]}  Nxe3 {[%clk 0:01:08]} 22. Qxe3 {[%clk 0:01:18]}  dxc2 {[%clk 0:01:05]} 23. Bd3 {[%clk 0:01:10]}  Rc6 {[%clk 0:00:58]} 24. Bxc2 {[%clk 0:01:06]}  Qc5 {[%clk 0:00:52]} 25. Bxh7 {[%clk 0:00:31]}  Qxe3 {[%clk 0:00:26]} 26. fxe3 {[%clk 0:00:31]}  Rd2+ {[%clk 0:00:27]} 27. Kb3 {[%clk 0:00:31]}  Rxg2 {[%clk 0:00:23]} 28. Nf5 {[%clk 0:00:27]}  Rc5 {[%clk 0:00:12]} 29. Nd6+ {[%clk 0:00:26]}  Kc7 {[%clk 0:00:04]} 30. Nxb7 {[%clk 0:00:26]}  Rb5+ {[%clk 0:00:02]} 31. Kc4 {[%clk 0:00:26]}  a6 {[%clk 0:00:00]} 32. Be4 {[%clk 0:00:24]} 1-0


[Site "https://www.chess.com"]

[Event "Titled Tuesday Blitz June 27 Late 2023"]
[White "Sargsyan, Anna M."]
[Black "Vasques, Antonio Pedro Freixial"]
[WhiteFideId "13308130"]
[BlackFideId "1908332"]
[WhiteElo "2578"]
[BlackElo "2376"]
[Result "1-0"]
[Round "3"]
[TimeControl "180+2"]
[Date "2023.06.27"]
[WhiteClock "0:00:19"]
[BlackClock "0:00:06"]
[Board "111"]

1. d4 {[%clk 0:03:00]}  Nf6 {[%clk 0:02:49]} 2. c4 {[%clk 0:02:59]}  e6 {[%clk 0:02:44]} 3. Nf3 {[%clk 0:02:57]}  Bb4+ {[%clk 0:02:40]} 4. Bd2 {[%clk 0:02:53]}  c5 {[%clk 0:02:38]} 5. g3 {[%clk 0:02:46]}  O-O {[%clk 0:02:36]} 6. Bg2 {[%clk 0:02:47]}  Nc6 {[%clk 0:02:35]} 7. O-O {[%clk 0:02:46]}  d5 {[%clk 0:02:18]} 8. Bg5 {[%clk 0:02:40]}  cxd4 {[%clk 0:02:15]} 9. Nxd4 {[%clk 0:02:33]}  Be7 {[%clk 0:02:05]} 10. Nc3 {[%clk 0:02:28]}  dxc4 {[%clk 0:01:51]} 11. Bxc6 {[%clk 0:02:21]}  bxc6 {[%clk 0:01:52]} 12. Nxc6 {[%clk 0:02:21]}  Qc7 {[%clk 0:01:51]} 13. Nxe7+ {[%clk 0:02:18]}  Qxe7 {[%clk 0:01:52]} 14. Qd4 {[%clk 0:02:17]}  Rd8 {[%clk 0:01:48]} 15. Qxc4 {[%clk 0:02:15]}  h6 {[%clk 0:01:46]} 16. Bxf6 {[%clk 0:02:04]}  Qxf6 {[%clk 0:01:47]} 17. Rfd1 {[%clk 0:02:03]}  Bd7 {[%clk 0:01:15]} 18. Qc7 {[%clk 0:02:01]}  Rac8 {[%clk 0:01:13]} 19. Qxa7 {[%clk 0:02:00]}  Bc6 {[%clk 0:01:12]} 20. Rxd8+ {[%clk 0:01:56]}  Rxd8 {[%clk 0:01:10]} 21. Qc7 {[%clk 0:01:56]}  Ba8 {[%clk 0:01:07]} 22. a4 {[%clk 0:01:49]}  h5 {[%clk 0:01:02]} 23. a5 {[%clk 0:01:43]}  Rd2 {[%clk 0:00:43]} 24. Qb8+ {[%clk 0:01:27]}  Rd8 {[%clk 0:00:33]} 25. Qf4 {[%clk 0:01:26]}  Qe7 {[%clk 0:00:29]} 26. a6 {[%clk 0:01:23]}  e5 {[%clk 0:00:20]} 27. Qc4 {[%clk 0:01:07]}  g6 {[%clk 0:00:18]} 28. Rd1 {[%clk 0:01:00]}  Kg7 {[%clk 0:00:17]} 29. Rxd8 {[%clk 0:00:36]}  Qxd8 {[%clk 0:00:18]} 30. Qc5 {[%clk 0:00:30]}  Qf6 {[%clk 0:00:16]} 31. Qc8 {[%clk 0:00:23]}  Qc6 {[%clk 0:00:07]} 32. Qxc6 {[%clk 0:00:21]}  Bxc6 {[%clk 0:00:08]} 33. a7 {[%clk 0:00:21]}  f5 {[%clk 0:00:06]} 34. Nb5 {[%clk 0:00:20]}  Kf6 {[%clk 0:00:06]} 35. Nc7 {[%clk 0:00:19]} 1-0


[Site "https://www.chess.com"]